[Event "Charlotte Summer IM C 2022"]
[Site "Charlotte"]
[Date "2022.07.28"]
[Round "7.1"]
[White "Xie, Bryan"]
[Black "Huston, Gus"]
[Result "0-1"]
[ECO "D02"]
[WhiteElo "2191"]
[BlackElo "2282"]
[Annotator "TA"]
[PlyCount "92"]
[EventDate "2022.07.24"]
[EventType "tourn"]
[EventCountry "USA"]
[SourceTitle "playchess.com"]
[Source "ChessBase"]
[SourceQuality "1"]
[TimeControl "5400+30"]

{[%evp 15,92,-6,0,-14,64,62,83,75,85,72,64,49,57,0,10,-4,13,5,61,19,29,18,17,10,2,0,3,-6,-5,-31,-14,-149,-104,-104,-102,-94,-94,-94,-94,-102,-96,-103,-104,-114,-105,-177,-154,-168,-156,-254,-254,-362,-248,-256,-253,-253,-251,-251,-245,-246,-234,-264,-233,-233,-200,-462,-335,-592,-588,-573,-563,-545,-534,-635,-343,-478,-310,-29997,-29998]} 1. d4 {[%emt 0:00:02]} Nf6 {[%emt 1:31:00]} 2. Nf3 {[%emt 0:00:10]} e6 {[%emt 0:00:00]} 3. Bf4 {[%emt 0:00:08]} d5 {[%emt 0:00:00]} 4. e3 {[%emt 0:00:06]} Bd6 {[%emt 0:00:00]} 5. Nbd2 {[%emt 0:00:45]} c5 {[%emt 0:00:00]} 6. Bg3 {[%emt 0:01:23]} O-O {[%emt 0:00:00]} 7. c3 {[%emt 0:01:01]} Nc6 {[%emt 0:00:00]} 8. Bd3 {[%emt 0:00:22]} b6 {[%emt 0:00:00]} 9. e4 {[%emt 0:00:59] Hoping for e5. 9.Qe2 is the modern continuation. D02: 1 d4 d5 2 Nf3 sidelines, including 2...Nf6 3 g3 and 2...Nf6 3 Bf4.} dxe4 {[%emt 0:00:00]} (9... Be7 $11) 10. Nxe4 $14 {[%emt 0:00:09]} Be7 {[%emt 0:00:00][%cal Rc5d4]} 11. Nxf6+ {[%emt 0:04:47] White is better.} Bxf6 {[%emt 0:00:00]} 12. dxc5 {[%emt 0:00:25]} bxc5 {[%emt 0:00:00]} 13. Be4 {[%emt 0:01:15]} Qb6 {[%emt 0:00:00] [#]} 14. Qa4 $146 {[%emt 0:07:38]} (14. Qc2 $14) ({Predecessor:} 14. Qb3 Bb7 15. O-O-O Na5 16. Qa4 Rfd8 17. Rhe1 Rac8 18. Bxb7 Nxb7 19. Nd2 c4 20. Nxc4 {½-½ (41) Paehtz,E (2487)-Warakomska,A (2233) Wroclaw 2018}) 14... Bb7 {[%emt 0:00:00]} 15. O-O {[%emt 0:11:20]} Rfd8 {[%emt 0:00:00][%cal Oc6d4]} 16. Rfd1 {[%emt 0:06:04]} a6 {[%emt 0:00:00]} ({Black should try} 16... Ne7 $11) 17. Nd2 {[%emt 0:04:05][%cal Bf3d2,Bd2c4,Bc4b6,Bb6c8,Bc8d6][%mdl 32]} Na5 $1 {[%emt 0:00:00]} (17... Qxb2 $2 18. Rab1 Qxc3 19. Rxb7 Rxd2 20. Rxd2 (20. Bxc6 Rd4 $17) 20... Qxd2 21. Rb1 $18) 18. Bxb7 {[%emt 0:14:25]} Nxb7 {[%emt 0:00:00]} 19. Nc4 {[%emt 0:01:07]} Qb5 $132 {[%emt 0:00:00][%mdl 2048] Black is not holding back} 20. Qb3 {[%emt 0:00:09]} Na5 {[%emt 0:00:00]} 21. Qxb5 {[%emt 0:24:10]} axb5 {[%emt 0:00:00]} 22. Nb6 {[%emt 0:00:23]} Ra7 {[%emt 0:00:00]} 23. Rxd8+ {[%emt 0:04:30]} (23. Kf1 $11 {remains equal.}) 23... Bxd8 $17 {[%emt 0:00:00]} 24. Nc8 {[%emt 0:00:01]} Ra8 {[%emt 0:00:00]} 25. Nd6 {[%emt 0:00:18] [#]} Nb3 $1 {[%emt 0:12:00]} 26. Rd1 {[%emt 0:06:54]} Rxa2 {[%emt 0:00:00][%cal Ba8a2,Ba2b2,Bb2b7][%mdl 32]} 27. Nxb5 {[%emt 0:00:08][%cal Rd1d8] [#]} Bf6 {[%emt 0:00:00]} 28. Be5 {[%emt 0:03:52][%cal Of2f3]} Rxb2 {[%emt 0:00:00]} 29. Bxf6 {[%emt 0:00:07]} gxf6 {[%emt 0:00:00][%mdl 4096] Endgame KRN-KRN} 30. g4 {[%emt 0:04:09]} (30. Rd8+ $17 {was called for.} Kg7 31. h3) 30... Nd2 $19 {[%emt 0:00:00] aiming for ...Ne4.} 31. Nd6 {[%emt 0:03:00] [#] Inhibits Ne4.} Kf8 $1 {[%emt 0:03:00]} 32. c4 {[%emt 0:01:47]} (32. Ra1 $17) 32... Ke7 {[%emt 0:00:30]} 33. Nb7 {[%emt 0:00:46]} (33. Nc8+ $142 Kd7 34. Na7) 33... Rxb7 {[%emt 0:00:00]} (33... Nxc4 34. Nxc5 Nd6 35. Ra1 $17) 34. Rxd2 {[%emt 0:00:05] KR-KR} Rb1+ {[%emt 0:00:00]} ({And not} 34... Rb4 35. Rc2 $17) 35. Kg2 {[%emt 0:00:04]} Rc1 {[%emt 0:00:00]} 36. Ra2 {[%emt 0:00:15]} Rxc4 {[%emt 0:00:00]} 37. Ra7+ {[%emt 0:00:05]} Kf8 {[%emt 0:00:00]} 38. Kg3 {[%emt 0:00:47]} Rc3+ {[%emt 0:00:00]} 39. Kf4 {[%emt 0:01:23]} h5 {[%emt 0:00:00][%cal Bh7h5,Bh5h4][%mdl 32]} 40. f3 $2 {[%emt 0:00:28]} (40. gxh5 {was worth a try.} Rh3 41. Kg4 Rxh2 42. f3) 40... h4 {[%emt 0:00:00]} 41. Rc7 $2 {[%emt 0:00:48]} (41. Ra2) 41... Kg7 {[%emt 0:00:00]} 42. Rc8 {[%emt 0:00:20]} c4 {[%emt 0:00:00]} 43. Rc5 {[%emt 0:00:38]} Kg6 {[%emt 0:00:00]} 44. h3 {[%emt 0:00:35]} Rc2 {[%emt 0:00:00] ( -> ...Re2)} 45. Rc8 {[%emt 0:00:35]} Rh2 {[%emt 0:00:00]} 46. Rxc4 $2 {[%emt 0:00:08]} (46. Ke3 $19) 46... Re2 {[%emt 0:00:00] Weighted Error Value: White=0.65/Black=0.26 (precise)} 0-1

[Event "Charlotte Summer IM C 2022"]
[Site "Charlotte"]
[Date "2022.07.28"]
[Round "7.2"]
[White "Adewumi, Tanitoluwa"]
[Black "Luo, Terry"]
[Result "0-1"]
[ECO "C54"]
[WhiteElo "2309"]
[BlackElo "2204"]
[Annotator "TA"]
[PlyCount "92"]
[EventDate "2022.07.24"]
[EventType "tourn"]
[EventCountry "USA"]
[SourceTitle "playchess.com"]
[Source "ChessBase"]
[SourceQuality "1"]
[TimeControl "5400+30"]

{[%evp 11,92,14,27,18,14,12,30,2,4,9,16,0,0,-3,0,-13,-7,-26,16,24,2,-20,-30,-27,-18,-37,0,0,21,0,3,4,36,45,79,87,129,27,17,-14,0,-83,-74,-128,-130,-133,-129,-112,-92,-137,-131,-116,-121,-135,-133,-122,-134,-320,-284,-309,-352,-867,-825,-946,-756,-695,-744,-851,-853,-814,-826,-890,-806,-1129,-1100,-2352,-2848,-29985,-29986,-29986,-29986,-29986,-29987]} 1. e4 {[%emt 0:00:34]} e5 {[%emt 0:00:13]} 2. Nf3 {[%emt 0:00:14]} Nc6 {[%emt 0:00:03]} 3. Bc4 {[%emt 0:00:28]} Bc5 {[%emt 0:00:06]} 4. O-O {[%emt 0:00:07]} Nf6 {[%emt 0:00:10]} 5. d3 {[%emt 0:00:11]} d6 {[%emt 0:01:25]} 6. c3 {[%emt 0:00:19]} a6 {[%emt 0:00:27]} 7. Re1 {[%emt 0:00:16] C54: Giuoco Piano: 4 c3 Nf6, main lines with 5 d4 and 5 d3.} Ba7 {[%emt 0:00:20]} 8. a4 {[%emt 0:00:12]} O-O $1 {[%emt 0:01:58][%cal Ob7b5] 8...0-0 scores better than 8...h6.} 9. h3 {[%emt 0:00:07] White has an edge.} h6 {[%emt 0:01:11]} 10. b4 {[%emt 0:03:06]} Ne7 {[%emt 0:01:21]} 11. Nbd2 {[%emt 0:01:02]} Ng6 {[%emt 0:00:15][%cal Ob7b5]} 12. Nf1 {[%emt 0:00:19]} c6 {[%emt 0:03:14]} 13. Ng3 {[%emt 0:02:45]} Re8 {[%emt 0:02:21][%cal Bf8e8,Be8e6,Be6d6,Bd6d7][%mdl 32] [#]} ({Don't do} 13... Qb6 14. d4 $14 (14. Be3 Qc7 $14)) 14. Ra2 $146 {[%emt 0:01:40]} ({Predecessor:} 14. a5 d5 15. Bb3 Be6 16. Be3 Bxe3 17. Rxe3 Qd7 18. c4 Rad8 19. cxd5 cxd5 20. Ba4 {0-1 (62) Eggleston,D (2403)-Pulpan,J (2397) Olomouc 2019}) 14... Be6 {[%emt 0:03:39]} (14... d5 {looks sharper.} 15. Bb3 Be6 16. Bd2 dxe4 17. dxe4 Qd3) 15. Bxe6 {[%emt 0:02:10]} Rxe6 {[%emt 0:00:30]} 16. Be3 {[%emt 0:04:33]} Bxe3 {[%emt 0:00:39]} 17. Rxe3 {[%emt 0:04:23]} d5 {[%emt 0:05:06]} 18. Qb3 {[%emt 0:02:12]} dxe4 {[%emt 0:06:24]} 19. dxe4 {[%emt 0:01:52]} Rd6 {[%emt 0:03:25]} 20. Nf5 {[%emt 0:03:49]} Rd7 {[%emt 0:03:41]} 21. c4 {[%emt 0:09:53]} Qc7 {[%emt 0:06:01]} 22. c5 {[%emt 0:03:11]} a5 {[%emt 0:04:40][%cal Ba6a5,Ba5a4][%mdl 32]} 23. Nd2 $1 {[%emt 0:03:14]} b5 {[%emt 0:31:49] [#] Prevents Nc4.} 24. axb5 {[%emt 0:16:20]} (24. cxb6 $1 $16 Qxb6 25. bxa5) 24... cxb5 $11 {[%emt 0:00:17]} 25. Nd6 {[%emt 0:01:19]} Qc6 $1 {[%emt 0:01:23]} 26. Rg3 {[%emt 0:02:46]} (26. Qc3 $11) 26... a4 $17 {[%emt 0:02:37]} 27. Qc3 {[%emt 0:17:52]} (27. Qc2 $142) 27... Ne8 {[%emt 0:01:34]} 28. Nf5 {[%emt 0:01:50]} Rad8 {[%emt 0:01:45]} 29. Kh2 {[%emt 0:02:30]} Ne7 {[%emt 0:06:24]} 30. Nf3 {[%emt 0:08:39]} Nxf5 {[%emt 0:04:14]} (30... Qxe4 $2 31. Nxh6+ Kf8 32. Ng5 $18 (32. Nxe5 Nd5 $14)) 31. exf5 {[%emt 0:03:14] [#]} f6 {[%emt 0:00:09]} 32. Qe3 {[%emt 0:00:23] Against Qe4} Kh7 {[%emt 0:03:46]} 33. Qe2 {[%emt 0:03:42]} Nc7 {[%emt 0:02:09][%cal Be8c7,Bc7d5,Bd5f4,Bf4d3][%mdl 32]} 34. Rg6 $2 {[%emt 0:01:23] White does not recover from this.} (34. Rb2 $17) 34... Nd5 $19 {[%emt 0:00:36] aiming for ...Nc3.} 35. Rb2 {[%emt 0:00:52]} Nf4 {[%emt 0:00:31][%csl LRe2,LRg6]} 36. Qxe5 {[%emt 0:01:03] [#]} ({Not} 36. Nxe5 Qc7 37. Qe3 Nxg6 38. fxg6+ Kg8 $19) (36. Qc2 Qc7 37. Qe4) 36... Qxf3 $3 {[%emt 0:01:45][%mdl 512]} 37. Qe1 {[%emt 0:00:00]} (37. gxf3 fxe5) 37... Qd1 {[%emt 0:00:15]} 38. Qxd1 {[%emt 0:00:26]} Rxd1 {[%emt 0:00:01]} 39. Rg4 {[%emt 0:00:15]} Nd3 {[%emt 0:00:18]} 40. Rc2 {[%emt 0:00:08]} Ne5 {[%emt 0:00:52]} 41. Re4 {[%emt 0:00:06]} R1d4 {[%emt 0:00:20]} 42. Rxd4 {[%emt 0:00:43]} Rxd4 {[%emt 0:00:01]} 43. c6 {[%emt 0:00:10]} Rc4 {[%emt 0:00:05]} 44. Rxc4 {[%emt 0:00:05]} Nxc4 {[%emt 0:04:30] Black mates.} 45. c7 {[%emt 0:00:56]} Nb6 {[%emt 0:00:00]} 46. c8=Q {[%emt 0:00:15]} Nxc8 {[%emt 0:00:00] Weighted Error Value: White=0.72/Black=0.13 (very precise)} 0-1

[Event "Charlotte Summer IM C 2022"]
[Site "Charlotte"]
[Date "2022.07.28"]
[Round "7.3"]
[White "Girones Barrios, Yans Richard"]
[Black "Rodrigue-Lemieux, Shawn"]
[Result "0-1"]
[ECO "E54"]
[WhiteElo "2412"]
[BlackElo "2366"]
[Annotator "TA"]
[PlyCount "58"]
[EventDate "2022.07.24"]
[EventType "tourn"]
[EventCountry "USA"]
[SourceTitle "playchess.com"]
[Source "ChessBase"]
[SourceQuality "1"]
[TimeControl "5400+30"]

{[%evp 20,58,0,0,0,0,18,26,47,7,15,-112,-122,-122,-95,-107,-120,-231,-226,-274,-270,-256,-148,-141,-102,-570,-589,-713,-707,-699,-677,-699,-686,-651,-581,-608,-468,-462,-431,-480,-408]} 1. d4 {[%emt 0:00:07]} Nf6 {[%emt 0:00:14]} 2. c4 {[%emt 0:00:28]} e6 {[%emt 0:00:05]} 3. Nf3 {[%emt 0:00:16]} d5 {[%emt 0:00:05]} 4. Nc3 {[%emt 0:00:34]} Bb4 {[%emt 0:00:06]} 5. e3 {[%emt 0:00:30]} O-O {[%emt 0:00:07]} 6. Bd3 {[%emt 0:00:06]} c5 {[%emt 0:00:07]} 7. O-O {[%emt 0:00:17]} cxd4 {[%emt 0:00:05]} 8. exd4 {[%emt 0:00:16]} dxc4 {[%emt 0:00:05]} 9. Bxc4 {[%emt 0:00:14]} b6 {[%emt 0:00:03]} 10. Qe2 {[%emt 0:03:09]} Bb7 {[%emt 0:00:04]} 11. Bg5 {[%emt 0:07:52][%cal Od4d5]} Bxc3 {[%emt 0:08:57] E54: Nimzo-Indian: Rubinstein: Main Line: 7...dxc4 8 Bxc4.} 12. bxc3 {[%emt 0:00:13]} Nc6 {[%emt 0:00:05][%cal Bb8c6,Bc6e7,Be7f5,Bf5h4][%mdl 32]} 13. Rad1 {[%emt 0:06:22] [#]} Ne7 $146 {[%emt 0:00:48] White has an edge.} ({Predecessor:} 13... Rc8 14. d5 exd5 15. Bxd5 Qe8 16. Qxe8 Rfxe8 17. Bxf6 gxf6 18. Rfe1 Rxe1+ 19. Rxe1 Kf8 {0-1 (50) Kashlinskaya,A (2455)-Dzagnidze,N (2520) Antalya 2017}) 14. Ne5 {[%emt 0:03:09]} Ne4 {[%emt 0:03:55] [#]} 15. Bh4 {[%emt 0:11:19]} (15. d5 $1 $11 {remains equal.} Nxg5 16. dxe6) 15... Nxc3 $17 {[%emt 0:06:18]} 16. Qg4 {[%emt 0:00:28][%cal Oh4f6] Bf6! is the strong threat.} Qd6 {[%emt 0:01:54]} (16... Nxd1 $6 17. Bf6 g6 18. Nxg6 Nxg6 19. Bxd8 $11) 17. Rd3 {[%emt 0:07:50] [#]} Ncd5 {[%emt 0:01:11]} 18. Rh3 {[%emt 0:13:21]} (18. Bxd5 $17 Nxd5 19. Bg5 (19. Rg3 g6 $17)) 18... Nf5 $19 {[%emt 0:17:56]} 19. Bd3 {[%emt 0:09:45]} f6 {[%emt 0:05:14] Against Bg5} 20. Nc4 {[%emt 0:00:28]} Qf4 {[%emt 0:01:00]} (20... Qc6 $19 21. Ne3 h5) 21. Qe2 $17 {[%emt 0:09:24]} Nxh4 {[%emt 0:17:58] Black is more active. Pair of Knights!} 22. Bxh7+ $2 {[%emt 0:02:14][%mdl 8192] Now White is beyond hope.} Kxh7 $19 {[%emt 0:04:02] Black is clearly winning.} 23. g3 {[%emt 0:00:15]} Nc3 {[%emt 0:08:19][%cal Rc3e2]} ({Stronger than} 23... Qf5 24. Rxh4+ Kg8 25. Nd6 $17) 24. Qd3+ {[%emt 0:01:04]} Qf5 {[%emt 0:00:17]} ({Worse is} 24... Be4 25. Qxc3 Qf3 26. Qxf3 Bxf3 27. Rxh4+ Kg8 28. Ne3 $17) 25. Rxh4+ {[%emt 0:00:12]} Kg8 {[%emt 0:00:03]} 26. Qxc3 {[%emt 0:00:02]} g5 {[%emt 0:01:05]} 27. Rh5 {[%emt 0:03:39]} Qf3 {[%emt 0:01:04]} 28. Qxf3 {[%emt 0:00:35]} Bxf3 {[%emt 0:00:04]} 29. Rh3 {[%emt 0:01:38]} Bg4 {[%emt 0:02:18] Weighted Error Value: White=0.74/Black=0.20 (precise)} 0-1

[Event "Charlotte Summer IM C 2022"]
[Site "Charlotte"]
[Date "2022.07.27"]
[Round "7.4"]
[White "Arjun, Vishnuvardhan"]
[Black "Venkat, Raghav"]
[Result "1/2-1/2"]
[WhiteElo "2273"]
[BlackElo "2227"]
[Annotator "TA"]
[PlyCount "33"]
[EventDate "2022.07.24"]
[EventType "tourn"]
[EventCountry "USA"]
[SourceTitle "playchess.com"]
[Source "ChessBase"]
[SourceQuality "1"]
[TimeControl "5400+30"]

{[%evp 9,16,7,18,0,7,0,0,0,0]} 1. d4 {[%emt 0:02:04]} Nf6 {[%emt 0:00:05]} 2. Nf3 {[%emt 0:00:08]} e6 {[%emt 0:00:05]} 3. e3 {[%emt 0:00:07]} d5 {[%emt 0:00:04]} 4. b3 {[%emt 0:00:07]} b6 {[%emt 0:00:06]} 5. Bb2 {[%emt 0:00:03]} Bb7 {[%emt 0:00:03] The position is equal.} 6. Nbd2 {[%emt 0:00:09] E14: Queen's Indian: Classical Variation (4 e3).} Nbd7 {[%emt 0:00:03]} 7. Bd3 {[%emt 0:00:08]} Bd6 {[%emt 0:00:04]} 8. O-O {[%emt 0:00:05]} O-O {[%emt 0:00:02] [#] Not much happened in this game.  Weighted Error Value: White=0.08 (flawless) /Black=0.00 (flawless)} {Predecessor:} 9. c4 $146 Re8 10. cxd5 exd5 11. Qc2 Qe7 12. Rac1 Ne4 13. Rfe1 h5 14. Bb5 c6 15. Bf1 Rac8 16. Nxe4 dxe4 17. Nd2 {0-1 (44) Lysyj,I (2603)-Kollars,D (2622) Chess.com INT 2022} 1/2-1/2

[Event "Charlotte Summer IM C 2022"]
[Site "Charlotte"]
[Date "2022.07.28"]
[Round "8.1"]
[White "Huston, Gus"]
[Black "Wen, Tommy"]
[Result "1-0"]
[ECO "B52"]
[WhiteElo "2282"]
[BlackElo "2040"]
[Annotator "TA"]
[PlyCount "97"]
[EventDate "2022.07.24"]
[EventType "tourn"]
[EventCountry "USA"]
[SourceTitle "playchess.com"]
[Source "ChessBase"]
[SourceQuality "1"]
[TimeControl "5400+30"]

{[%evp 11,97,8,13,-7,0,-10,-7,0,-3,0,0,0,-16,-33,-26,-35,-43,-37,-12,-25,-18,-15,-10,-12,-10,-16,0,0,0,-27,0,-29,0,0,148,75,75,83,250,47,141,0,30,0,6,-12,-3,-2,5,-13,8,-27,0,-36,-18,-57,131,81,65,45,56,61,59,59,64,78,384,0,12,16,20,17,606,594,753,727,810,764,1056,982,5265,500,1815,1729,6183,6195,29989,29990]} 1. e4 {[%emt 0:02:10]} c5 {[%emt 0:00:07]} 2. Nf3 {[%emt 0:00:28]} d6 {[%emt 0:00:07]} 3. Bb5+ {[%emt 0:00:04]} Bd7 {[%emt 0:00:05]} 4. Bxd7+ {[%emt 0:00:50]} Qxd7 {[%emt 0:00:07]} 5. O-O {[%emt 0:00:06]} Nc6 {[%emt 0:00:07]} 6. c3 {[%emt 0:00:03]} d5 {[%emt 0:00:36]} 7. e5 {[%emt 0:00:36] B52: Sicilian: Moscow Variation with 3...Bd7.} e6 {[%emt 0:00:27]} 8. d4 {[%emt 0:00:06]} Rc8 {[%emt 0:00:12] [#]} 9. Re1 $146 {[%emt 0:01:42] The position is equal.} ({Predecessor:} 9. Bf4 Nge7 10. Nbd2 Nf5 11. Nb3 cxd4 12. Nbxd4 Nfxd4 13. Nxd4 Bc5 14. Nb3 Bb6 15. Qg4 {½-½ (41) Balabayeva,K (2116)-Nguyen,P (2411) Belgrade 2021}) 9... cxd4 {[%emt 0:01:04]} 10. cxd4 {[%emt 0:00:21]} Nge7 {[%emt 0:00:07]} 11. Nc3 {[%emt 0:00:35]} Nf5 {[%emt 0:00:57]} 12. g4 {[%emt 0:00:52]} Nfe7 {[%emt 0:00:21]} 13. Bf4 {[%emt 0:06:51]} h5 {[%emt 0:03:51]} 14. h3 {[%emt 0:00:07]} hxg4 {[%emt 0:00:55]} 15. hxg4 {[%emt 0:00:03]} Ng6 {[%emt 0:00:16]} 16. Bg3 {[%emt 0:00:45]} Bb4 {[%emt 0:07:12]} 17. Rc1 {[%emt 0:00:26]} Na5 {[%emt 0:06:56]} 18. Qd3 {[%emt 0:05:34]} a6 {[%emt 0:10:53]} 19. Kg2 {[%emt 0:02:38]} Nc4 {[%emt 0:04:58]} 20. b3 {[%emt 0:02:57]} Na3 {[%emt 0:04:43]} 21. Rf1 {[%emt 0:05:57]} Rc6 {[%emt 0:08:36]} 22. Ne2 {[%emt 0:01:05]} Ne7 {[%emt 0:03:49]} (22... Rxc1 $11 {remains equal.} 23. Rxc1 Nb5) 23. Nf4 {[%emt 0:03:38]} (23. Rh1 $142 Rg8 24. Qh7) 23... Rxc1 $16 {[%emt 0:04:18]} 24. Rxc1 {[%emt 0:00:11]} g6 $2 {[%emt 0:02:16]} (24... Nc6 $16) 25. Ng5 $2 {[%emt 0:05:17]} (25. Bh4 $18) 25... Nb5 {[%emt 0:18:45]} (25... Ba5 $14) 26. f3 {[%emt 0:07:16] White is more active.} (26. Qb1 $16) 26... Nc7 {[%emt 0:02:24]} 27. Qc2 {[%emt 0:01:55]} (27. Qb1 $5 {[%cal Rc1h1]}) 27... Nc6 {[%emt 0:05:52]} 28. Bf2 {[%emt 0:05:42]} Qe7 {[%emt 0:14:29]} 29. Nfh3 {[%emt 0:02:08]} Kd8 {[%emt 0:00:00][%cal Be8d8,Bd8c8,Bc8b8][%mdl 32]} 30. Be3 {[%emt 0:02:52]} Kc8 {[%emt 0:00:00]} (30... Ba3 $5 {[%cal Ra3c1]}) 31. Qf2 {[%emt 0:01:49]} Kb8 {[%emt 0:00:00]} (31... Ba3 $5 {[%cal Ra3c1]} 32. Rh1 Kb8 $15) 32. Qg3 {[%emt 0:00:52]} Nb5 {[%emt 0:00:00]} 33. Qf4 {[%emt 0:00:27]} Bc3 $2 {[%emt 0:00:00]} (33... Rf8 $1 $15 {stays ahead.}) 34. a4 {[%emt 0:03:33]} ({Much worse is} 34. Nxf7 $6 Rf8 35. Nhg5 Bxd4 36. Bxd4 (36. Rxc6 Bxe3 37. Qxe3 bxc6 $11) 36... Ncxd4 $11) (34. Qxf7 $142 {aiming for a4.} Qxf7 35. Nxf7) 34... Nbxd4 {[%emt 0:00:00]} 35. Bxd4 {[%emt 0:01:01][%mdl 64] Remove Defender} ({But not} 35. Rxc3 Ne2 36. Qxf7 Nxc3 $11) 35... Bxd4 {[%emt 0:00:00] [#]} 36. Rxc6 $1 {[%emt 0:00:14][%mdl 64] Remove Defender} bxc6 {[%emt 0:00:00]} 37. Qxd4 {[%emt 0:00:02] And now Qb6+ would win.} c5 {[%emt 0:00:00]} 38. Qf4 {[%emt 0:02:12]} Rc8 $2 {[%emt 0:00:00][%mdl 8192]} (38... Rf8 $16) 39. Nf2 $2 {[%emt 0:03:33]} (39. Nxf7 $18 {Black must now prevent Nd6.} Rf8 40. Nhg5) 39... c4 {[%emt 0:00:00]} 40. bxc4 {[%emt 0:00:01]} Rxc4 {[%emt 0:00:00]} 41. Qf6 {[%emt 0:00:06]} Qa7 {[%emt 0:03:29][%mdl 8192]} (41... Qxf6 $2 42. exf6 Rc7 43. Nd3 $18) (41... Rc7 $11) 42. Nxf7 $18 {[%emt 0:01:35]} Qe3 {[%emt 0:01:57]} 43. Qd8+ {[%emt 0:01:01]} Ka7 {[%emt 0:02:04]} 44. Qd7+ {[%emt 0:00:18]} Kb6 {[%emt 0:00:30]} 45. Qxe6+ {[%emt 0:00:20]} Rc6 {[%emt 0:00:30]} 46. Nd6 {[%emt 0:01:09]} (46. a5+ $142 Kc5 47. Qd7) 46... Kc5 {[%emt 0:00:00]} (46... Qd4 $142 47. f4 Ka5 48. Qxg6 Qxf4) 47. Qe7 {[%emt 0:01:31] [#] White threatens Nf5+ and mate.} Kb4 {[%emt 0:00:00]} 48. Nf5+ {[%emt 0:00:30]} Kxa4 {[%emt 0:01:30]} 49. Nxe3 {[%emt 0:00:00] Weighted Error Value: White=0.51/Black=0.75} 1-0